[Event "Titled Tuesday Blitz May 16 Late 2023"]
[White "ElDivis"]
[Black "Hambleton, Aman"]
[BlackFideId "2606577"]
[WhiteElo "2511"]
[BlackElo "2511"]
[Result "0-1"]
[Round "08"]
[TimeControl "180+2"]
[Date "2023.05.16"]
[WhiteClock "0:00:34"]
[BlackClock "0:00:03"]

1. e4 {[%clk 0:02:59]}  b6 {[%clk 0:02:57]} 2. d4 {[%clk 0:02:59]}  Bb7 {[%clk 0:02:58]} 3. Bd3 {[%clk 0:02:59]}  e6 {[%clk 0:02:58]} 4. Qe2 {[%clk 0:02:58]}  d5 {[%clk 0:02:58]} 5. e5 {[%clk 0:02:56]}  c5 {[%clk 0:02:59]} 6. c3 {[%clk 0:02:56]}  Qc8 {[%clk 0:02:59]} 7. Bb5+ {[%clk 0:02:50]}  Bc6 {[%clk 0:02:59]} 8. a4 {[%clk 0:02:50]}  Bxb5 {[%clk 0:02:27]} 9. axb5 {[%clk 0:02:45]}  cxd4 {[%clk 0:02:27]} 10. Nf3 {[%clk 0:02:46]}  dxc3 {[%clk 0:02:25]} 11. Nxc3 {[%clk 0:02:47]}  Bc5 {[%clk 0:01:41]} 12. h4 {[%clk 0:02:47]}  Ne7 {[%clk 0:01:40]} 13. h5 {[%clk 0:02:47]}  h6 {[%clk 0:01:40]} 14. Rh4 {[%clk 0:02:32]}  a5 {[%clk 0:01:40]} 15. Rg4 {[%clk 0:02:09]}  Nf5 {[%clk 0:01:39]} 16. Bd2 {[%clk 0:01:58]}  Nd7 {[%clk 0:01:35]} 17. Na4 {[%clk 0:01:41]}  Qb7 {[%clk 0:00:50]} 18. Nxc5 {[%clk 0:01:27]}  Nxc5 {[%clk 0:00:44]} 19. Nd4 {[%clk 0:01:11]}  Nxd4 {[%clk 0:00:41]} 20. Rxd4 {[%clk 0:01:12]}  Nb3 {[%clk 0:00:41]} 21. Raa4 {[%clk 0:01:05]}  Nxd4 {[%clk 0:00:39]} 22. Rxd4 {[%clk 0:01:06]}  O-O-O {[%clk 0:00:33]} 23. b4 {[%clk 0:01:04]}  a4 {[%clk 0:00:33]} 24. Qd1 {[%clk 0:01:02]}  Qa8 {[%clk 0:00:29]} 25. Qc2+ {[%clk 0:00:57]}  Kb8 {[%clk 0:00:28]} 26. Rf4 {[%clk 0:00:55]}  Rc8 {[%clk 0:00:20]} 27. Qa2 {[%clk 0:00:55]}  Rc7 {[%clk 0:00:19]} 28. Be3 {[%clk 0:00:55]}  Kb7 {[%clk 0:00:18]} 29. Rg4 {[%clk 0:00:55]}  Rg8 {[%clk 0:00:09]} 30. Qa1 {[%clk 0:00:55]}  a3 {[%clk 0:00:08]} 31. Rd4 {[%clk 0:00:53]}  Qa4 {[%clk 0:00:06]} 32. Rd3 {[%clk 0:00:49]}  Qxb4+ {[%clk 0:00:05]} 33. Bd2 {[%clk 0:00:49]}  Qb2 {[%clk 0:00:04]} 34. Rxa3 {[%clk 0:00:46]}  Qxa1+ {[%clk 0:00:04]} 35. Rxa1 {[%clk 0:00:47]}  Rc5 {[%clk 0:00:03]} 36. Rb1 {[%clk 0:00:46]}  Rgc8 {[%clk 0:00:02]} 37. Be3 {[%clk 0:00:46]}  Rc4 {[%clk 0:00:02]} 38. Ra1 {[%clk 0:00:45]}  d4 {[%clk 0:00:02]} 39. Bd2 {[%clk 0:00:45]}  R8c5 {[%clk 0:00:02]} 40. Ra3 {[%clk 0:00:42]}  Rxe5+ {[%clk 0:00:02]} 41. Kd1 {[%clk 0:00:41]}  Rxh5 {[%clk 0:00:02]} 42. Rg3 {[%clk 0:00:41]}  g6 {[%clk 0:00:03]} 43. Rf3 {[%clk 0:00:38]}  Rf5 {[%clk 0:00:03]} 44. Rh3 {[%clk 0:00:38]}  h5 {[%clk 0:00:04]} 45. f3 {[%clk 0:00:38]}  Rxb5 {[%clk 0:00:04]} 46. g4 {[%clk 0:00:37]}  Ra4 {[%clk 0:00:03]} 47. Ke2 {[%clk 0:00:37]}  Ra2 {[%clk 0:00:03]} 48. gxh5 {[%clk 0:00:37]}  gxh5 {[%clk 0:00:02]} 49. Rh4 {[%clk 0:00:34]}  Rbb2 {[%clk 0:00:03]} 0-1


[Site "https://www.chess.com"]

[Event "Titled Tuesday Blitz May 16 Late 2023"]
[White "Adla, Diego"]
[Black "Averjanov, Alexey"]
[WhiteFideId "100072"]
[BlackFideId "14109867"]
[WhiteElo "2377"]
[BlackElo "2785"]
[Result "1/2-1/2"]
[Round "08"]
[TimeControl "180+2"]
[Date "2023.05.16"]
[WhiteClock "0:00:08"]
[BlackClock "0:00:11"]

1. c4 {[%clk 0:03:00]}  c5 {[%clk 0:03:00]} 2. Nf3 {[%clk 0:03:00]}  Nc6 {[%clk 0:03:00]} 3. d4 {[%clk 0:03:00]}  cxd4 {[%clk 0:03:01]} 4. Nxd4 {[%clk 0:03:01]}  g6 {[%clk 0:03:01]} 5. e4 {[%clk 0:03:00]}  Bg7 {[%clk 0:03:01]} 6. Be3 {[%clk 0:03:00]}  d6 {[%clk 0:03:02]} 7. Nc3 {[%clk 0:02:57]}  Nf6 {[%clk 0:03:02]} 8. Be2 {[%clk 0:02:57]}  Bd7 {[%clk 0:02:51]} 9. O-O {[%clk 0:02:53]}  O-O {[%clk 0:02:50]} 10. h3 {[%clk 0:02:49]}  Nxd4 {[%clk 0:02:48]} 11. Bxd4 {[%clk 0:02:47]}  Bc6 {[%clk 0:02:48]} 12. Qc2 {[%clk 0:02:47]}  Rc8 {[%clk 0:02:40]} 13. b4 {[%clk 0:02:38]}  a6 {[%clk 0:02:34]} 14. a4 {[%clk 0:02:35]}  a5 {[%clk 0:02:30]} 15. b5 {[%clk 0:02:33]}  Bd7 {[%clk 0:02:30]} 16. Rad1 {[%clk 0:02:29]}  Qc7 {[%clk 0:02:22]} 17. Bxf6 {[%clk 0:02:23]}  exf6 {[%clk 0:02:19]} 18. Nd5 {[%clk 0:02:20]}  Qd8 {[%clk 0:02:19]} 19. Bg4 {[%clk 0:02:10]}  Be6 {[%clk 0:02:17]} 20. Qd3 {[%clk 0:02:01]}  Re8 {[%clk 0:02:13]} 21. Ne3 {[%clk 0:02:01]}  Bf8 {[%clk 0:02:06]} 22. f4 {[%clk 0:02:00]}  Qc7 {[%clk 0:02:04]} 23. Bxe6 {[%clk 0:01:55]}  fxe6 {[%clk 0:02:01]} 24. f5 {[%clk 0:01:55]}  Bg7 {[%clk 0:01:53]} 25. fxe6 {[%clk 0:01:51]}  Rxe6 {[%clk 0:01:54]} 26. Qd5 {[%clk 0:01:40]}  Re8 {[%clk 0:01:50]} 27. Nf5 {[%clk 0:01:36]}  Qc5+ {[%clk 0:01:46]} 28. Qxc5 {[%clk 0:01:35]}  dxc5 {[%clk 0:01:47]} 29. Ng3 {[%clk 0:01:23]}  h5 {[%clk 0:01:43]} 30. h4 {[%clk 0:01:21]}  b6 {[%clk 0:01:37]} 31. Rd7 {[%clk 0:01:20]}  R8e7 {[%clk 0:01:30]} 32. Rfd1 {[%clk 0:01:20]}  Bh6 {[%clk 0:01:27]} 33. Rxe7 {[%clk 0:01:18]}  Rxe7 {[%clk 0:01:28]} 34. Kf2 {[%clk 0:01:06]}  Bf4 {[%clk 0:01:27]} 35. Rd3 {[%clk 0:00:57]}  Bxg3+ {[%clk 0:01:25]} 36. Rxg3 {[%clk 0:00:57]}  Rxe4 {[%clk 0:01:17]} 37. Rxg6+ {[%clk 0:00:57]}  Kf7 {[%clk 0:01:18]} 38. Rh6 {[%clk 0:00:57]}  Rxh4 {[%clk 0:01:08]} 39. Rh7+ {[%clk 0:00:56]}  Ke6 {[%clk 0:01:06]} 40. Rb7 {[%clk 0:00:57]}  Rxc4 {[%clk 0:01:03]} 41. Rxb6+ {[%clk 0:00:58]}  Ke5 {[%clk 0:01:00]} 42. Rc6 {[%clk 0:00:58]}  f5 {[%clk 0:00:54]} 43. b6 {[%clk 0:00:58]}  Kd5 {[%clk 0:00:52]} 44. Rf6 {[%clk 0:00:58]}  Rxa4 {[%clk 0:00:49]} 45. Rxf5+ {[%clk 0:00:58]}  Kc6 {[%clk 0:00:48]} 46. Rxh5 {[%clk 0:00:36]}  Kxb6 {[%clk 0:00:48]} 47. Rh8 {[%clk 0:00:36]}  Rg4 {[%clk 0:00:44]} 48. Kf3 {[%clk 0:00:35]}  Rg7 {[%clk 0:00:44]} 49. Rb8+ {[%clk 0:00:31]}  Kc6 {[%clk 0:00:44]} 50. g4 {[%clk 0:00:28]}  c4 {[%clk 0:00:42]} 51. Kf4 {[%clk 0:00:19]}  Kc5 {[%clk 0:00:42]} 52. g5 {[%clk 0:00:18]}  c3 {[%clk 0:00:42]} 53. Ra8 {[%clk 0:00:13]}  Kb4 {[%clk 0:00:42]} 54. Rb8+ {[%clk 0:00:14]}  Ka3 {[%clk 0:00:41]} 55. Rc8 {[%clk 0:00:12]}  Kb2 {[%clk 0:00:41]} 56. Rb8+ {[%clk 0:00:12]}  Ka3 {[%clk 0:00:37]} 57. Rc8 {[%clk 0:00:12]}  Kb2 {[%clk 0:00:34]} 58. Rb8+ {[%clk 0:00:12]}  Kc1 {[%clk 0:00:34]} 59. Ra8 {[%clk 0:00:12]}  c2 {[%clk 0:00:32]} 60. Rxa5 {[%clk 0:00:12]}  Rc7 {[%clk 0:00:32]} 61. Ra2 {[%clk 0:00:11]}  Kd1 {[%clk 0:00:28]} 62. Rxc2 {[%clk 0:00:10]}  Kxc2 {[%clk 0:00:29]} 63. Kf5 {[%clk 0:00:11]}  Kd3 {[%clk 0:00:27]} 64. g6 {[%clk 0:00:10]}  Kd4 {[%clk 0:00:26]} 65. Kf6 {[%clk 0:00:11]}  Rc6+ {[%clk 0:00:23]} 66. Kf7 {[%clk 0:00:07]}  Ke5 {[%clk 0:00:23]} 67. g7 {[%clk 0:00:08]}  Rc7+ {[%clk 0:00:23]} 68. Kg6 {[%clk 0:00:08]}  Rc6+ {[%clk 0:00:22]} 69. Kf7 {[%clk 0:00:08]}  Rc7+ {[%clk 0:00:15]} 70. Kg6 {[%clk 0:00:08]}  Rc8 {[%clk 0:00:12]} 71. Kf7 {[%clk 0:00:08]}  Rc7+ {[%clk 0:00:11]} 1/2-1/2


[Site "https://www.chess.com"]

[Event "Titled Tuesday Blitz May 16 Late 2023"]
[White "ArtemDyachuk"]
[Black "Fernandez Guillen, Ernesto J."]
[BlackFideId "3512428"]
[WhiteElo "2533"]
[BlackElo "2429"]
[Result "0-1"]
[Round "08"]
[TimeControl "180+2"]
[Date "2023.05.16"]
[WhiteClock "0:00:02"]
[BlackClock "0:00:23"]

1. Nf3 {[%clk 0:03:00]}  Nf6 {[%clk 0:02:46]} 2. b3 {[%clk 0:03:00]}  b6 {[%clk 0:02:45]} 3. Bb2 {[%clk 0:03:00]}  Bb7 {[%clk 0:02:45]} 4. c4 {[%clk 0:03:01]}  g6 {[%clk 0:02:45]} 5. g3 {[%clk 0:02:57]}  Bg7 {[%clk 0:02:44]} 6. Bg2 {[%clk 0:02:58]}  O-O {[%clk 0:02:41]} 7. O-O {[%clk 0:02:58]}  c5 {[%clk 0:02:38]} 8. d4 {[%clk 0:02:58]}  cxd4 {[%clk 0:02:36]} 9. Qxd4 {[%clk 0:02:59]}  Nc6 {[%clk 0:02:36]} 10. Qh4 {[%clk 0:02:56]}  h6 {[%clk 0:02:26]} 11. Ne5 {[%clk 0:02:38]}  g5 {[%clk 0:02:15]} 12. Qh3 {[%clk 0:02:37]}  Nxe5 {[%clk 0:02:11]} 13. Bxb7 {[%clk 0:02:28]}  Rb8 {[%clk 0:01:54]} 14. Bh1 {[%clk 0:02:04]}  Qc7 {[%clk 0:01:40]} 15. Nc3 {[%clk 0:02:01]}  a6 {[%clk 0:01:34]} 16. Qf5 {[%clk 0:01:56]}  e6 {[%clk 0:01:32]} 17. Qc2 {[%clk 0:01:48]}  b5 {[%clk 0:01:19]} 18. cxb5 {[%clk 0:01:24]}  axb5 {[%clk 0:01:20]} 19. Rac1 {[%clk 0:01:13]}  Rfc8 {[%clk 0:00:59]} 20. Qb1 {[%clk 0:01:06]}  Qb6 {[%clk 0:00:58]} 21. Na4 {[%clk 0:00:47]}  bxa4 {[%clk 0:00:57]} 22. Bxe5 {[%clk 0:00:46]}  Rxc1 {[%clk 0:00:54]} 23. Qxc1 {[%clk 0:00:28]}  d6 {[%clk 0:00:55]} 24. Bxf6 {[%clk 0:00:25]}  Bxf6 {[%clk 0:00:55]} 25. bxa4 {[%clk 0:00:26]}  d5 {[%clk 0:00:55]} 26. Qc2 {[%clk 0:00:18]}  Qa6 {[%clk 0:00:50]} 27. Bf3 {[%clk 0:00:12]}  Rb2 {[%clk 0:00:48]} 28. Qc5 {[%clk 0:00:08]}  Kg7 {[%clk 0:00:39]} 29. Rc1 {[%clk 0:00:05]}  Qxa4 {[%clk 0:00:37]} 30. Qd6 {[%clk 0:00:03]}  g4 {[%clk 0:00:34]} 31. Rc8 {[%clk 0:00:02]}  gxf3 {[%clk 0:00:25]} 32. Qf8+ {[%clk 0:00:03]}  Kg6 {[%clk 0:00:25]} 33. Qg8+ {[%clk 0:00:03]}  Bg7 {[%clk 0:00:26]} 34. exf3 {[%clk 0:00:04]}  Qd1+ {[%clk 0:00:25]} 35. Kg2 {[%clk 0:00:03]}  Qe2 {[%clk 0:00:24]} 36. Rf8 {[%clk 0:00:02]}  Qxf2+ {[%clk 0:00:24]} 37. Kh3 {[%clk 0:00:03]}  Qxf3 {[%clk 0:00:24]} 38. Rxf7 {[%clk 0:00:02]}  Qh5# {[%clk 0:00:23]} 0-1


[Site "https://www.chess.com"]

[Event "Titled Tuesday Blitz May 16 Late 2023"]
[White "Perske, Thore"]
[Black "Simonian, Hrair"]
[WhiteFideId "12902195"]
[BlackFideId "13302337"]
[WhiteElo "2336"]
[BlackElo "2447"]
[Result "1-0"]
[Round "08"]
[TimeControl "180+2"]
[Date "2023.05.16"]
[WhiteClock "0:00:03"]
[BlackClock "0:00:02"]

1. d4 {[%clk 0:03:00]}  Nf6 {[%clk 0:02:59]} 2. g3 {[%clk 0:03:01]}  e6 {[%clk 0:02:58]} 3. Bg2 {[%clk 0:03:01]}  d6 {[%clk 0:02:57]} 4. e4 {[%clk 0:02:59]}  Be7 {[%clk 0:02:51]} 5. Ne2 {[%clk 0:02:59]}  Nc6 {[%clk 0:02:49]} 6. O-O {[%clk 0:02:59]}  O-O {[%clk 0:02:45]} 7. Nbc3 {[%clk 0:02:59]}  Bd7 {[%clk 0:02:23]} 8. h3 {[%clk 0:02:55]}  e5 {[%clk 0:02:21]} 9. Be3 {[%clk 0:02:54]}  exd4 {[%clk 0:02:13]} 10. Nxd4 {[%clk 0:02:55]}  Nxd4 {[%clk 0:02:14]} 11. Qxd4 {[%clk 0:02:49]}  Re8 {[%clk 0:02:13]} 12. Rad1 {[%clk 0:02:48]}  Bf8 {[%clk 0:02:06]} 13. Bg5 {[%clk 0:02:45]}  c6 {[%clk 0:01:49]} 14. Rfe1 {[%clk 0:02:33]}  h6 {[%clk 0:01:44]} 15. Bf4 {[%clk 0:02:33]}  Re6 {[%clk 0:01:39]} 16. Qb4 {[%clk 0:01:59]}  b5 {[%clk 0:01:34]} 17. Bxd6 {[%clk 0:01:36]}  a5 {[%clk 0:01:12]} 18. Qc5 {[%clk 0:01:34]}  Bxd6 {[%clk 0:00:43]} 19. Rxd6 {[%clk 0:01:33]}  Qf8 {[%clk 0:00:42]} 20. e5 {[%clk 0:01:11]}  Ne8 {[%clk 0:00:41]} 21. Red1 {[%clk 0:00:44]}  Nxd6 {[%clk 0:00:37]} 22. exd6 {[%clk 0:00:44]}  Rae8 {[%clk 0:00:28]} 23. Kh2 {[%clk 0:00:43]}  Rc8 {[%clk 0:00:24]} 24. a4 {[%clk 0:00:43]}  b4 {[%clk 0:00:23]} 25. Ne4 {[%clk 0:00:43]}  Qd8 {[%clk 0:00:21]} 26. Qd4 {[%clk 0:00:39]}  h5 {[%clk 0:00:16]} 27. Nc5 {[%clk 0:00:39]}  Rg6 {[%clk 0:00:15]} 28. Re1 {[%clk 0:00:34]}  h4 {[%clk 0:00:15]} 29. Re7 {[%clk 0:00:33]}  hxg3+ {[%clk 0:00:15]} 30. fxg3 {[%clk 0:00:33]}  Bf5 {[%clk 0:00:15]} 31. Nb7 {[%clk 0:00:25]}  Qf8 {[%clk 0:00:09]} 32. c4 {[%clk 0:00:22]}  bxc3 {[%clk 0:00:09]} 33. bxc3 {[%clk 0:00:22]}  Be6 {[%clk 0:00:08]} 34. Nxa5 {[%clk 0:00:18]}  Rd8 {[%clk 0:00:07]} 35. c4 {[%clk 0:00:13]}  Bf5 {[%clk 0:00:05]} 36. c5 {[%clk 0:00:10]}  Rh6 {[%clk 0:00:06]} 37. Nxc6 {[%clk 0:00:09]}  Rc8 {[%clk 0:00:06]} 38. Ne5 {[%clk 0:00:07]}  Be6 {[%clk 0:00:06]} 39. c6 {[%clk 0:00:06]}  Qd8 {[%clk 0:00:06]} 40. c7 {[%clk 0:00:06]}  Qf8 {[%clk 0:00:06]} 41. a5 {[%clk 0:00:06]}  Rh5 {[%clk 0:00:06]} 42. a6 {[%clk 0:00:06]}  f6 {[%clk 0:00:04]} 43. Rxe6 {[%clk 0:00:05]}  fxe5 {[%clk 0:00:04]} 44. Rxe5 {[%clk 0:00:05]}  Rxe5 {[%clk 0:00:04]} 45. Qxe5 {[%clk 0:00:06]}  Re8 {[%clk 0:00:02]} 46. Bd5+ {[%clk 0:00:03]}  Kh8 {[%clk 0:00:02]} 47. Qh5# {[%clk 0:00:03]} 1-0


[Site "https://www.chess.com"]

[Event "Titled Tuesday Blitz May 16 Late 2023"]
[White "ProphetReborn"]
[Black "Karttunen, Mika"]
[BlackFideId "502081"]
[WhiteElo "2853"]
[BlackElo "2396"]
[Result "1-0"]
[Round "08"]
[TimeControl "180+2"]
[Date "2023.05.16"]
[WhiteClock "0:02:01"]
[BlackClock "0:00:22"]

1. d4 {[%clk 0:02:59]}  Nf6 {[%clk 0:02:57]} 2. c4 {[%clk 0:03:00]}  e6 {[%clk 0:02:57]} 3. Nf3 {[%clk 0:03:00]}  d5 {[%clk 0:02:58]} 4. Nc3 {[%clk 0:02:59]}  Bb4 {[%clk 0:02:58]} 5. Bg5 {[%clk 0:02:51]}  h6 {[%clk 0:02:56]} 6. Bxf6 {[%clk 0:02:48]}  Qxf6 {[%clk 0:02:56]} 7. Qa4+ {[%clk 0:02:49]}  Nc6 {[%clk 0:02:56]} 8. e3 {[%clk 0:02:49]}  O-O {[%clk 0:02:56]} 9. cxd5 {[%clk 0:02:46]}  exd5 {[%clk 0:02:55]} 10. Be2 {[%clk 0:02:47]}  a5 {[%clk 0:02:14]} 11. O-O {[%clk 0:02:47]}  Ne7 {[%clk 0:02:12]} 12. a3 {[%clk 0:02:45]}  Bd6 {[%clk 0:02:07]} 13. b4 {[%clk 0:02:45]}  c6 {[%clk 0:01:57]} 14. Qb3 {[%clk 0:02:35]}  b5 {[%clk 0:01:33]} 15. bxa5 {[%clk 0:02:30]}  Rxa5 {[%clk 0:01:32]} 16. e4 {[%clk 0:02:27]}  Qe6 {[%clk 0:00:52]} 17. exd5 {[%clk 0:02:21]}  Nxd5 {[%clk 0:00:48]} 18. Nxd5 {[%clk 0:02:18]}  Qxd5 {[%clk 0:00:47]} 19. Qc3 {[%clk 0:02:12]}  Bd7 {[%clk 0:00:39]} 20. Qxa5 {[%clk 0:02:05]}  Re8 {[%clk 0:00:29]} 21. Rfe1 {[%clk 0:02:05]}  Qh5 {[%clk 0:00:28]} 22. Ne5 {[%clk 0:02:03]}  Qh4 {[%clk 0:00:28]} 23. g3 {[%clk 0:02:02]}  Qxd4 {[%clk 0:00:22]} 24. Nxd7 {[%clk 0:02:01]} 1-0


[Site "https://www.chess.com"]

[Event "Titled Tuesday Blitz May 16 Late 2023"]
[White "Tristan, Leonardo"]
[Black "Loiacono, Antonio"]
[WhiteFideId "113816"]
[BlackFideId "895415"]
[WhiteElo "2461"]
[BlackElo "2257"]
[Result "1-0"]
[Round "08"]
[TimeControl "180+2"]
[Date "2023.05.16"]
[WhiteClock "0:00:17"]
[BlackClock "0:01:44"]

1. d4 {[%clk 0:03:00]}  Nf6 {[%clk 0:02:58]} 2. Nf3 {[%clk 0:03:00]}  c5 {[%clk 0:02:58]} 3. c3 {[%clk 0:03:00]}  Nc6 {[%clk 0:02:55]} 4. Bf4 {[%clk 0:03:00]}  e6 {[%clk 0:02:54]} 5. e3 {[%clk 0:03:00]}  d5 {[%clk 0:02:54]} 6. Nbd2 {[%clk 0:03:00]}  b6 {[%clk 0:02:54]} 7. Bb5 {[%clk 0:02:51]}  Bd7 {[%clk 0:02:53]} 8. Ba6 {[%clk 0:02:51]}  Bc8 {[%clk 0:02:53]} 9. Bb5 {[%clk 0:02:34]}  Bd7 {[%clk 0:02:52]} 10. Qa4 {[%clk 0:02:35]}  Nb8 {[%clk 0:02:48]} 11. Bxb8 {[%clk 0:02:13]}  Qxb8 {[%clk 0:02:41]} 12. Bc6 {[%clk 0:01:17]}  Qc8 {[%clk 0:02:35]} 13. Bxd7+ {[%clk 0:01:06]}  Qxd7 {[%clk 0:02:36]} 14. Qxd7+ {[%clk 0:01:04]}  Nxd7 {[%clk 0:02:35]} 15. e4 {[%clk 0:01:04]}  cxd4 {[%clk 0:02:34]} 16. Nxd4 {[%clk 0:01:03]}  dxe4 {[%clk 0:02:29]} 17. Nxe4 {[%clk 0:01:03]}  Nc5 {[%clk 0:02:30]} 18. Nxc5 {[%clk 0:00:39]}  Bxc5 {[%clk 0:02:31]} 19. O-O-O {[%clk 0:00:40]}  O-O-O {[%clk 0:02:27]} 20. Nc6 {[%clk 0:00:29]}  Rd7 {[%clk 0:02:17]} 21. Rxd7 {[%clk 0:00:25]}  Kxd7 {[%clk 0:02:16]} 22. Nxa7 {[%clk 0:00:26]}  Bxf2 {[%clk 0:02:14]} 23. Rd1+ {[%clk 0:00:26]}  Kc7 {[%clk 0:02:10]} 24. Nb5+ {[%clk 0:00:26]}  Kc6 {[%clk 0:02:10]} 25. Na7+ {[%clk 0:00:20]}  Kc7 {[%clk 0:02:08]} 26. Nb5+ {[%clk 0:00:20]}  Kc6 {[%clk 0:02:09]} 27. a4 {[%clk 0:00:21]}  e5 {[%clk 0:02:02]} 28. Rd6+ {[%clk 0:00:20]}  Kc5 {[%clk 0:02:00]} 29. b4+ {[%clk 0:00:18]}  Kc4 {[%clk 0:01:58]} 30. Kc2 {[%clk 0:00:18]}  Bc5 {[%clk 0:01:44]} 31. Na3# {[%clk 0:00:17]} 1-0


[Site "https://www.chess.com"]

[Event "Titled Tuesday Blitz May 16 Late 2023"]
[White "Musovic, Armin"]
[Black "Wagner, Dennis"]
[WhiteFideId "939935"]
[BlackFideId "24650684"]
[WhiteElo "2322"]
[BlackElo "2478"]
[Result "0-1"]
[Round "08"]
[TimeControl "180+2"]
[Date "2023.05.16"]
[WhiteClock "0:00:08"]
[BlackClock "0:00:09"]

1. a3 {[%clk 0:02:49]}  Nf6 {[%clk 0:02:59]} 2. Nf3 {[%clk 0:02:45]}  g6 {[%clk 0:02:59]} 3. Nc3 {[%clk 0:02:45]}  Bg7 {[%clk 0:02:59]} 4. e4 {[%clk 0:02:46]}  c5 {[%clk 0:02:52]} 5. Bc4 {[%clk 0:02:46]}  Nc6 {[%clk 0:02:51]} 6. d3 {[%clk 0:02:46]}  O-O {[%clk 0:02:51]} 7. O-O {[%clk 0:02:47]}  d6 {[%clk 0:02:46]} 8. h3 {[%clk 0:02:47]}  a6 {[%clk 0:02:43]} 9. Ba2 {[%clk 0:02:47]}  b5 {[%clk 0:02:43]} 10. Bg5 {[%clk 0:02:46]}  h6 {[%clk 0:02:35]} 11. Bh4 {[%clk 0:02:47]}  Bb7 {[%clk 0:02:22]} 12. Re1 {[%clk 0:02:40]}  Kh7 {[%clk 0:02:11]} 13. a4 {[%clk 0:02:27]}  b4 {[%clk 0:02:06]} 14. Ne2 {[%clk 0:02:25]}  e6 {[%clk 0:01:38]} 15. Rc1 {[%clk 0:02:10]}  g5 {[%clk 0:01:36]} 16. Bg3 {[%clk 0:01:49]}  Nh5 {[%clk 0:01:36]} 17. Bh2 {[%clk 0:01:47]}  Bxb2 {[%clk 0:01:34]} 18. Rb1 {[%clk 0:01:17]}  Bg7 {[%clk 0:01:34]} 19. d4 {[%clk 0:01:13]}  cxd4 {[%clk 0:01:31]} 20. Nexd4 {[%clk 0:01:14]}  Nf4 {[%clk 0:00:46]} 21. c3 {[%clk 0:01:01]}  a5 {[%clk 0:00:32]} 22. Nb5 {[%clk 0:01:01]}  bxc3 {[%clk 0:00:22]} 23. Nxd6 {[%clk 0:00:51]}  Nb4 {[%clk 0:00:22]} 24. Bxf4 {[%clk 0:00:26]}  c2 {[%clk 0:00:17]} 25. Nxg5+ {[%clk 0:00:27]}  Qxg5 {[%clk 0:00:14]} 26. Bxg5 {[%clk 0:00:20]}  cxd1=Q {[%clk 0:00:14]} 27. Rexd1 {[%clk 0:00:16]}  hxg5 {[%clk 0:00:15]} 28. Bc4 {[%clk 0:00:11]}  Bc6 {[%clk 0:00:13]} 29. Bb5 {[%clk 0:00:10]}  Bxb5 {[%clk 0:00:13]} 30. axb5 {[%clk 0:00:10]}  Be5 {[%clk 0:00:10]} 31. Nc4 {[%clk 0:00:10]}  Bf6 {[%clk 0:00:07]} 32. g3 {[%clk 0:00:09]}  Rfb8 {[%clk 0:00:06]} 33. Nd6 {[%clk 0:00:05]}  Be7 {[%clk 0:00:06]} 34. Nxf7 {[%clk 0:00:05]}  Ra7 {[%clk 0:00:05]} 35. Ne5 {[%clk 0:00:05]}  Rxb5 {[%clk 0:00:04]} 36. Nc6 {[%clk 0:00:05]}  Rab7 {[%clk 0:00:04]} 37. Nd8 {[%clk 0:00:04]}  Bxd8 {[%clk 0:00:03]} 38. Rxd8 {[%clk 0:00:05]}  a4 {[%clk 0:00:03]} 39. Rdd1 {[%clk 0:00:04]}  a3 {[%clk 0:00:04]} 40. Ra1 {[%clk 0:00:05]}  a2 {[%clk 0:00:04]} 41. Kg2 {[%clk 0:00:05]}  Ra7 {[%clk 0:00:05]} 42. Rd2 {[%clk 0:00:05]}  Rc5 {[%clk 0:00:05]} 43. Rb2 {[%clk 0:00:06]}  Ra4 {[%clk 0:00:04]} 44. h4 {[%clk 0:00:05]}  Rc2 {[%clk 0:00:05]} 45. Rxc2 {[%clk 0:00:04]}  Nxc2 {[%clk 0:00:06]} 46. Rxa2 {[%clk 0:00:05]}  Rxa2 {[%clk 0:00:06]} 47. hxg5 {[%clk 0:00:06]}  Nd4 {[%clk 0:00:06]} 48. Kh3 {[%clk 0:00:06]}  e5 {[%clk 0:00:07]} 49. f4 {[%clk 0:00:06]}  Kg6 {[%clk 0:00:07]} 50. Kg4 {[%clk 0:00:06]}  exf4 {[%clk 0:00:08]} 51. gxf4 {[%clk 0:00:07]}  Rg2+ {[%clk 0:00:08]} 52. Kh3 {[%clk 0:00:07]}  Rg1 {[%clk 0:00:08]} 53. Kh4 {[%clk 0:00:07]}  Nf3+ {[%clk 0:00:09]} 54. Kh3 {[%clk 0:00:08]}  Kh5 {[%clk 0:00:09]} 55. g6 {[%clk 0:00:08]}  Kxg6 {[%clk 0:00:09]} 56. e5 {[%clk 0:00:08]}  Kf5 {[%clk 0:00:09]} 57. e6 {[%clk 0:00:08]}  Kxf4 {[%clk 0:00:09]} 0-1


[Site "https://www.chess.com"]

[Event "Titled Tuesday Blitz May 16 Late 2023"]
[White "Bryakin, Mikhail"]
[Black "Golubev, Mikhail"]
[WhiteFideId "4165314"]
[BlackFideId "14100983"]
[WhiteElo "2467"]
[BlackElo "2374"]
[Result "1-0"]
[Round "08"]
[TimeControl "180+2"]
[Date "2023.05.16"]
[WhiteClock "0:00:28"]
[BlackClock "0:00:07"]

1. e4 {[%clk 0:02:52]}  c5 {[%clk 0:02:59]} 2. Ne2 {[%clk 0:02:52]}  Nf6 {[%clk 0:02:56]} 3. Nbc3 {[%clk 0:02:52]}  d6 {[%clk 0:02:57]} 4. g3 {[%clk 0:02:52]}  g6 {[%clk 0:02:55]} 5. Bg2 {[%clk 0:02:53]}  Nc6 {[%clk 0:02:55]} 6. O-O {[%clk 0:02:53]}  Bg7 {[%clk 0:02:55]} 7. d3 {[%clk 0:02:53]}  O-O {[%clk 0:02:54]} 8. h3 {[%clk 0:02:54]}  Rb8 {[%clk 0:02:54]} 9. Be3 {[%clk 0:02:53]}  b5 {[%clk 0:02:54]} 10. Qd2 {[%clk 0:02:54]}  b4 {[%clk 0:02:50]} 11. Nd1 {[%clk 0:02:54]}  a5 {[%clk 0:02:46]} 12. f4 {[%clk 0:02:54]}  a4 {[%clk 0:02:43]} 13. Rb1 {[%clk 0:02:53]}  Bd7 {[%clk 0:02:30]} 14. Nf2 {[%clk 0:02:53]}  a3 {[%clk 0:02:15]} 15. b3 {[%clk 0:02:50]}  e5 {[%clk 0:02:09]} 16. f5 {[%clk 0:02:44]}  gxf5 {[%clk 0:02:01]} 17. exf5 {[%clk 0:02:45]}  Nd4 {[%clk 0:02:00]} 18. g4 {[%clk 0:02:44]}  d5 {[%clk 0:01:38]} 19. Nxd4 {[%clk 0:02:37]}  cxd4 {[%clk 0:01:26]} 20. Bg5 {[%clk 0:02:36]}  Bc6 {[%clk 0:01:15]} 21. Rbe1 {[%clk 0:02:36]}  Re8 {[%clk 0:01:14]} 22. Re2 {[%clk 0:02:24]}  Qd6 {[%clk 0:00:59]} 23. Rfe1 {[%clk 0:02:19]}  Re7 {[%clk 0:00:59]} 24. Bh4 {[%clk 0:01:54]}  h6 {[%clk 0:00:59]} 25. g5 {[%clk 0:01:52]}  hxg5 {[%clk 0:00:58]} 26. Qxg5 {[%clk 0:01:48]}  Rbe8 {[%clk 0:00:57]} 27. Ng4 {[%clk 0:01:48]}  Nxg4 {[%clk 0:00:49]} 28. hxg4 {[%clk 0:01:49]}  f6 {[%clk 0:00:46]} 29. Qg6 {[%clk 0:01:48]}  Rf8 {[%clk 0:00:46]} 30. g5 {[%clk 0:01:45]}  Be8 {[%clk 0:00:45]} 31. gxf6 {[%clk 0:01:42]}  Rxf6 {[%clk 0:00:39]} 32. Qg4 {[%clk 0:01:35]}  Bf7 {[%clk 0:00:33]} 33. Bf3 {[%clk 0:01:21]}  Rh6 {[%clk 0:00:30]} 34. Bxe7 {[%clk 0:01:19]}  Qxe7 {[%clk 0:00:31]} 35. Rxe5 {[%clk 0:01:16]}  Qd8 {[%clk 0:00:23]} 36. Re7 {[%clk 0:01:04]}  Kf8 {[%clk 0:00:17]} 37. Qg5 {[%clk 0:00:57]}  Qd6 {[%clk 0:00:16]} 38. R1e2 {[%clk 0:00:50]}  Rf6 {[%clk 0:00:14]} 39. Bh5 {[%clk 0:00:31]}  Bh6 {[%clk 0:00:07]} 40. Re8+ {[%clk 0:00:28]} 1-0


[Site "https://www.chess.com"]